[Event "SWE-ch Class 1 2019"]
[Site "Eskilstuna"]
[Date "2019.07.09"]
[Round "2.7"]
[White "Akerlund, Fredrik"]
[Black "Magnussen, Pal"]
[Result "1/2-1/2"]
[ECO "C54"]
[WhiteElo "1815"]
[BlackElo "1985"]
[Annotator "NA"]
[PlyCount "90"]
[EventDate "2019.07.06"]
[EventType "tourn"]
[EventCountry "SWE"]
[SourceTitle "playchess.com"]
[Source "ChessBase"]
[SourceQuality "1"]
[TimeControl "40/5400+30:1800+30"]

1. e4 {[%emt 0:00:00]} e5 {[%emt 0:00:00]} 2. Nf3 {[%emt 0:00:00]} Nc6 {[%emt 0:00:01]} 3. Bc4 {[%emt 0:00:07]} Bc5 {[%emt 0:00:38]} 4. c3 {[%emt 0:00:13]} Nf6 {[%emt 0:07:04]} 5. d4 {[%emt 0:00:28]} exd4 {[%emt 0:01:11]} 6. cxd4 {[%emt 0:01:49]} Bb4+ {[%emt 0:02:59]} 7. Bd2 {[%emt 0:01:47]} O-O {[%emt 0:04:52]} 8. d5 {[%emt 0:21:51]} Bxd2+ {[%emt 0:03:28]} 9. Nbxd2 {[%emt 0:05:19]} Ne7 {[%emt 0:02:11]} 10. O-O {[%emt 0:03:57]} d6 {[%emt 0:00:44]} 11. Re1 {[%emt 0:05:23]} c6 {[%emt 0:09:01]} 12. dxc6 {[%emt 0:02:19]} Nxc6 {[%emt 0:03:33]} 13. Rc1 {[%emt 0:13:25]} d5 {[%emt 0:11:22]} 14. exd5 {[%emt 0:02:17]} Nxd5 {[%emt 0:00:28]} 15. Ne4 {[%emt 0:00:53]} Nb6 {[%emt 0:02:49]} 16. Bf1 {[%emt 0:06:35]} Qc7 {[%emt 0:02:59]} 17. b4 {[%emt 0:02:41]} a6 {[%emt 0:03:03]} 18. a3 {[%emt 0:03:38]} Bg4 {[%emt 0:03:58]} 19. h3 {[%emt 0:01:47]} Rad8 {[%emt 0:01:21]} 20. Qb3 {[%emt 0:02:00]} Be6 {[%emt 0:01:53]} 21. Qc2 {[%emt 0:01:57]} Qf4 {[%emt 0:01:30]} 22. Qc5 {[%emt 0:06:41]} Nd7 {[%emt 0:05:25]} 23. Qe3 {[%emt 0:01:29]} Qxe3 {[%emt 0:01:27]} 24. Rxe3 {[%emt 0:00:14]} Bd5 {[%emt 0:04:31]} 25. Ned2 {[%emt 0:05:21]} Nf6 {[%emt 0:02:05]} 26. Nc4 {[%emt 0:00:50]} Bxf3 {[%emt 0:03:01]} 27. Rxf3 {[%emt 0:00:17]} Rd4 {[%emt 0:00:52]} 28. Rd3 {[%emt 0:04:08]} b5 {[%emt 0:03:38]} 29. Nb2 {[%emt 0:02:32]} Rxd3 {[%emt 0:01:20]} 30. Nxd3 {[%emt 0:00:49]} Nd4 {[%emt 0:01:39]} 31. Nc5 {[%emt 0:00:35]} g6 {[%emt 0:01:24]} 32. f3 {[%emt 0:01:34]} Rd8 {[%emt 0:02:44]} 33. Kf2 {[%emt 0:00:27]} h5 {[%emt 0:04:17]} 34. h4 {[%emt 0:01:03]} Nf5 {[%emt 0:01:16]} 35. Rc2 {[%emt 0:01:27]} Rd6 {[%emt 0:01:13]} 36. g3 {[%emt 0:00:17]} Kg7 {[%emt 0:00:49]} 37. a4 {[%emt 0:00:59]} bxa4 {[%emt 0:01:24]} 38. Bxa6 {[%emt 0:00:16]} Rb6 {[%emt 0:00:56]} 39. b5 {[%emt 0:00:23]} Kf8 {[%emt 0:01:37]} 40. Nxa4 {[%emt 0:00:16]} Rb8 {[%emt 0:00:19]} 41. b6 {[%emt 0:31:53]} Nd6 {[%emt 0:31:08]} 42. Rc7 {[%emt 0:00:00]} Nd5 {[%emt 0:00:00]} 43. Rc6 {[%emt 0:00:00]} Ke7 {[%emt 0:00:00]} 44. Bc4 {[%emt 0:00:00]} Kf8 {[%emt 0:00:22]} 45. Ba6 {[%emt 0:00:09]} Ke8 {[%emt 0:00:06]} 1/2-1/2

[Event "SWE-ch Class 1 2019"]
[Site "Eskilstuna"]
[Date "2019.07.09"]
[Round "2.8"]
[White "Grundel, Sam"]
[Black "Jonsson, Krister"]
[Result "1/2-1/2"]
[ECO "C02"]
[WhiteElo "2069"]
[BlackElo "2068"]
[Annotator "NA"]
[PlyCount "66"]
[EventDate "2019.07.06"]
[EventType "tourn"]
[EventCountry "SWE"]
[SourceTitle "playchess.com"]
[Source "ChessBase"]
[SourceQuality "1"]
[TimeControl "40/5400+30:1800+30"]

1. e4 {[%emt 0:00:00]} e6 {[%emt 0:00:00]} 2. d4 {[%emt 0:00:00]} d5 {[%emt 0:00:00]} 3. e5 {[%emt 0:00:05]} c5 {[%emt 0:00:05]} 4. c3 {[%emt 0:00:06]} Nc6 {[%emt 0:00:10]} 5. Nf3 {[%emt 0:00:07]} Qb6 {[%emt 0:01:07]} 6. a3 {[%emt 0:00:15]} Nh6 {[%emt 0:00:42]} 7. b4 {[%emt 0:00:30]} cxd4 {[%emt 0:00:06]} 8. cxd4 {[%emt 0:00:06]} Nf5 {[%emt 0:00:15]} 9. Bb2 {[%emt 0:00:12]} Be7 {[%emt 0:03:02]} 10. Be2 {[%emt 0:00:55]} Bd7 {[%emt 0:00:16]} 11. O-O {[%emt 0:00:14]} Rc8 {[%emt 0:02:25]} 12. Kh1 {[%emt 0:01:52]} f6 {[%emt 0:21:45]} 13. Bd3 {[%emt 0:06:28]} fxe5 {[%emt 0:09:10]} 14. Nxe5 {[%emt 0:05:51]} Nxe5 {[%emt 0:03:42]} 15. dxe5 {[%emt 0:00:17]} Bb5 {[%emt 0:02:01]} 16. Bxb5+ {[%emt 0:03:41]} Qxb5 {[%emt 0:00:00]} 17. Nc3 {[%emt 0:00:15]} Qa6 {[%emt 0:05:13]} 18. Qh5+ {[%emt 0:09:53]} g6 {[%emt 0:01:05]} 19. Qg4 {[%emt 0:03:13]} Qc4 {[%emt 0:10:15]} 20. Qd1 {[%emt 0:08:41]} O-O {[%emt 0:00:43]} 21. Qd2 {[%emt 0:03:02]} a5 {[%emt 0:09:45]} 22. bxa5 {[%emt 0:04:20]} Rc5 {[%emt 0:02:22]} 23. Rfc1 {[%emt 0:14:15]} Qh4 {[%emt 0:04:25]} 24. Qe1 {[%emt 0:10:33]} Rc4 {[%emt 0:07:06]} 25. Ne2 {[%emt 0:07:50]} Bc5 {[%emt 0:01:41]} 26. Rxc4 {[%emt 0:02:28]} dxc4 {[%emt 0:00:06]} 27. Kg1 {[%emt 0:10:32]} Nh6 {[%emt 0:01:43]} 28. g3 {[%emt 0:00:16]} Qe4 {[%emt 0:02:01]} 29. Nd4 {[%emt 0:03:18]} Qd5 {[%emt 0:01:38]} 30. Rd1 {[%emt 0:02:35]} Ng4 {[%emt 0:00:44]} 31. f4 {[%emt 0:02:40]} Nh6 {[%emt 0:05:56]} 32. Qd2 {[%emt 0:00:54]} Nf5 {[%emt 0:01:00]} 33. Qg2 {[%emt 0:00:34]} Rd8 {[%emt 0:01:42]} 1/2-1/2

[Event "SWE-ch Class 1 2019"]
[Site "Eskilstuna"]
[Date "2019.07.09"]
[Round "2.9"]
[White "Thollin, Robert"]
[Black "Willinger, Tim"]
[Result "1-0"]
[ECO "B90"]
[WhiteElo "1983"]
[BlackElo "2053"]
[Annotator "NA"]
[PlyCount "67"]
[EventDate "2019.07.06"]
[EventType "tourn"]
[EventCountry "SWE"]
[SourceTitle "playchess.com"]
[Source "ChessBase"]
[SourceQuality "1"]
[TimeControl "40/5400+30:1800+30"]

1. e4 {[%emt 0:01:43]} c5 {[%emt 0:00:00]} 2. Nf3 {[%emt 0:00:49]} e6 {[%emt 0:00:00]} 3. d4 {[%emt 0:01:24]} cxd4 {[%emt 0:00:00]} 4. Nxd4 {[%emt 0:00:20]} Nf6 {[%emt 0:00:06]} 5. Nc3 {[%emt 0:00:11]} d6 {[%emt 0:00:05]} 6. Bd3 {[%emt 0:02:01]} a6 {[%emt 0:02:39]} 7. a4 {[%emt 0:07:04]} b6 {[%emt 0:03:28]} 8. Bg5 {[%emt 0:02:16]} Bb7 {[%emt 0:01:04]} 9. f4 {[%emt 0:05:36]} Nbd7 {[%emt 0:02:11]} 10. Qe2 {[%emt 0:23:57]} Qc7 {[%emt 0:07:07]} 11. Bxf6 {[%emt 0:07:32]} gxf6 {[%emt 0:08:26]} 12. f5 {[%emt 0:09:09]} Ke7 {[%emt 0:10:24]} 13. O-O-O {[%emt 0:10:30]} Bh6+ {[%emt 0:06:40]} 14. Kb1 {[%emt 0:00:02]} Ne5 {[%emt 0:01:22]} 15. fxe6 {[%emt 0:03:22]} fxe6 {[%emt 0:05:57]} 16. Nd5+ {[%emt 0:01:05]} exd5 {[%emt 0:01:27]} 17. Nf5+ {[%emt 0:00:07]} Kd7 {[%emt 0:09:36]} 18. Nxh6 {[%emt 0:00:04]} Qc6 {[%emt 0:05:39]} 19. Ng4 {[%emt 0:03:04]} Qxa4 {[%emt 0:09:15]} 20. Nxf6+ {[%emt 0:00:08]} Kc7 {[%emt 0:00:17]} 21. Nxd5+ {[%emt 0:00:34]} Bxd5 {[%emt 0:00:12]} 22. exd5 {[%emt 0:00:02]} a5 {[%emt 0:07:08]} 23. Rhf1 {[%emt 0:01:07]} Qh4 {[%emt 0:01:26]} 24. g3 {[%emt 0:00:41]} Qh6 {[%emt 0:01:18]} 25. Bb5 {[%emt 0:05:03]} a4 {[%emt 0:02:47]} 26. Rf5 {[%emt 0:02:07]} Rhg8 {[%emt 0:07:35]} 27. Rdf1 {[%emt 0:04:15]} Rg7 {[%emt 0:01:36]} 28. Rxe5 {[%emt 0:01:26]} dxe5 {[%emt 0:01:33]} 29. Qxe5+ {[%emt 0:00:02]} Kb7 {[%emt 0:00:29]} 30. Bc6+ {[%emt 0:00:03]} Ka7 {[%emt 0:00:09]} 31. Bxa8 {[%emt 0:00:16]} Kxa8 {[%emt 0:00:02]} 32. Qe8+ {[%emt 0:00:32]} Kb7 {[%emt 0:00:46]} 33. Rf8 {[%emt 0:01:16]} a3 {[%emt 0:02:28]} 34. Qc8+ {[%emt 0:00:27]} 1-0

[Event "SWE-ch Class 1 2019"]
[Site "Eskilstuna"]
[Date "2019.07.09"]
[Round "2.10"]
[White "Johansson, Roland"]
[Black "Carnstam, Tomas"]
[Result "1/2-1/2"]
[ECO "B32"]
[WhiteElo "2002"]
[BlackElo "1967"]
[Annotator "NA"]
[PlyCount "59"]
[EventDate "2019.07.06"]
[EventType "tourn"]
[EventCountry "SWE"]
[SourceTitle "playchess.com"]
[Source "ChessBase"]
[SourceQuality "1"]
[TimeControl "40/5400+30:1800+30"]

1. e4 {[%emt 0:00:00]} c5 {[%emt 0:00:00]} 2. Nf3 {[%emt 0:00:00]} Nc6 {[%emt 0:00:00]} 3. d4 {[%emt 0:00:00]} cxd4 {[%emt 0:00:00]} 4. Nxd4 {[%emt 0:00:00]} e5 {[%emt 0:01:06]} 5. Nb5 {[%emt 0:00:00]} a6 {[%emt 0:00:09]} 6. Nd6+ {[%emt 0:00:02]} Bxd6 {[%emt 0:00:10]} 7. Qxd6 {[%emt 0:00:06]} Qf6 {[%emt 0:00:19]} 8. Qxf6 {[%emt 0:02:12]} Nxf6 {[%emt 0:03:57]} 9. Nc3 {[%emt 0:00:05]} d5 {[%emt 0:00:36]} 10. exd5 {[%emt 0:00:30]} Nb4 {[%emt 0:00:18]} 11. Bd3 {[%emt 0:00:18]} Nbxd5 {[%emt 0:01:29]} 12. Nxd5 {[%emt 0:01:06]} Nxd5 {[%emt 0:00:33]} 13. O-O {[%emt 0:00:00]} O-O {[%emt 0:09:34]} 14. Re1 {[%emt 0:07:19]} Nb4 {[%emt 0:00:41]} 15. Rxe5 {[%emt 0:04:08]} Nxd3 {[%emt 0:00:46]} 16. cxd3 {[%emt 0:00:09]} Be6 {[%emt 0:00:33]} 17. d4 {[%emt 0:05:45]} Rfd8 {[%emt 0:02:35]} 18. Be3 {[%emt 0:01:53]} Rac8 {[%emt 0:04:42]} 19. b3 {[%emt 0:01:43]} Rc2 {[%emt 0:08:04]} 20. Rc5 {[%emt 0:00:47]} Rc8 {[%emt 0:01:23]} 21. Rxc8+ {[%emt 0:04:01]} Rxc8 {[%emt 0:01:10]} 22. Rc1 {[%emt 0:06:01]} Rxc1+ {[%emt 0:04:50]} 23. Bxc1 {[%emt 0:17:55]} Bd5 {[%emt 0:02:18]} 24. Ba3 {[%emt 0:00:17]} f6 {[%emt 0:01:01]} 25. f3 {[%emt 0:00:07]} Kf7 {[%emt 0:00:36]} 26. Kf2 {[%emt 0:00:06]} Ke6 {[%emt 0:01:16]} 27. Ke3 {[%emt 0:00:05]} g6 {[%emt 0:06:26]} 28. Kd3 {[%emt 0:01:08]} a5 {[%emt 0:08:19]} 29. Bc5 {[%emt 0:07:21]} a4 {[%emt 0:03:44]} 30. bxa4 {[%emt 0:01:33]} 1/2-1/2

[Event "SWE-ch Class 1 2019"]
[Site "Eskilstuna"]
[Date "2019.07.10"]
[Round "3.1"]
[White "Kardell, Mathias"]
[Black "Bernhard, Jonathan"]
[Result "0-1"]
[ECO "C50"]
[WhiteElo "2064"]
[BlackElo "1917"]
[Annotator "NA"]
[PlyCount "78"]
[EventDate "2019.07.06"]
[EventType "tourn"]
[EventCountry "SWE"]
[SourceTitle "playchess.com"]
[Source "ChessBase"]
[SourceQuality "1"]
[TimeControl "40/5400+30:1800+30"]

1. e4 {[%emt 0:00:00]} Nc6 {[%emt 0:00:00]} 2. Nf3 {[%emt 0:00:00]} e5 {[%emt 0:00:00]} 3. Bc4 {[%emt 0:00:00]} Bc5 {[%emt 0:00:00]} 4. d3 {[%emt 0:00:12]} Nf6 {[%emt 0:00:02]} 5. Bg5 {[%emt 0:00:36]} d6 {[%emt 0:04:14]} 6. O-O {[%emt 0:01:09]} h6 {[%emt 0:00:58]} 7. Bh4 {[%emt 0:00:49]} g5 {[%emt 0:02:02]} 8. Bg3 {[%emt 0:00:11]} Nh7 {[%emt 0:03:28]} 9. c3 {[%emt 0:05:40]} Qf6 {[%emt 0:03:28]} 10. b4 {[%emt 0:20:23]} Bb6 {[%emt 0:00:27]} 11. a4 {[%emt 0:00:58]} a5 {[%emt 0:07:20]} 12. b5 {[%emt 0:03:15]} Ne7 {[%emt 0:00:17]} 13. d4 {[%emt 0:05:21]} Ng6 {[%emt 0:01:24]} 14. Na3 {[%emt 0:24:31]} g4 {[%emt 0:07:27]} 15. dxe5 {[%emt 0:01:25]} dxe5 {[%emt 0:00:14]} 16. Bxf7+ {[%emt 0:21:16]} Qxf7 {[%emt 0:04:31]} 17. Nxe5 {[%emt 0:00:42]} Nxe5 {[%emt 0:00:03]} 18. Bxe5 {[%emt 0:00:07]} O-O {[%emt 0:00:12]} 19. Qe2 {[%emt 0:02:04]} Be6 {[%emt 0:04:37]} 20. Bd4 {[%emt 0:06:47]} Ng5 {[%emt 0:07:45]} 21. Qe3 {[%emt 0:00:51]} Qf4 {[%emt 0:07:00]} 22. Bxb6 {[%emt 0:02:58]} cxb6 {[%emt 0:00:50]} 23. Qxb6 {[%emt 0:00:17]} Rae8 {[%emt 0:03:22]} 24. Nc2 {[%emt 0:01:16]} Qxe4 {[%emt 0:04:21]} 25. Ne3 {[%emt 0:00:13]} Rf7 {[%emt 0:04:31]} 26. Rad1 {[%emt 0:00:27]} Ref8 {[%emt 0:14:44]} 27. Qd4 {[%emt 0:01:26]} Bb3 {[%emt 0:02:43]} 28. Qxe4 {[%emt 0:00:31]} Nxe4 {[%emt 0:00:11]} 29. Nxg4 {[%emt 0:00:30]} Bxd1 {[%emt 0:02:31]} 30. Nxh6+ {[%emt 0:00:05]} Kg7 {[%emt 0:00:02]} 31. Nxf7 {[%emt 0:00:12]} Bxa4 {[%emt 0:00:02]} 32. Ne5 {[%emt 0:01:03]} Bxb5 {[%emt 0:01:01]} 33. Rb1 {[%emt 0:00:24]} Nxc3 {[%emt 0:01:32]} 34. Rb3 {[%emt 0:00:28]} Ne2+ {[%emt 0:00:09]} 35. Kh1 {[%emt 0:00:06]} Rxf2 {[%emt 0:00:41]} 36. Rb1 {[%emt 0:01:09]} Rf5 {[%emt 0:02:17]} 37. Ng4 {[%emt 0:00:26]} Bc6 {[%emt 0:01:22]} 38. h3 {[%emt 0:00:34]} Nf4 {[%emt 0:00:58]} 39. Ne3 {[%emt 0:00:21]} Re5 {[%emt 0:00:26]} 0-1

[Event "SWE-ch Class 1 2019"]
[Site "Eskilstuna"]
[Date "2019.07.10"]
[Round "3.2"]
[White "Forsberg, Andre"]
[Black "Nordstrom, Felix"]
[Result "1/2-1/2"]
[ECO "B42"]
[WhiteElo "1982"]
[BlackElo "2064"]
[Annotator "NA"]
[PlyCount "35"]
[EventDate "2019.07.06"]
[EventType "tourn"]
[EventCountry "SWE"]
[SourceTitle "playchess.com"]
[Source "ChessBase"]
[SourceQuality "1"]
[TimeControl "40/5400+30:1800+30"]

1. e4 {[%emt 0:00:35]} c5 {[%emt 0:00:00]} 2. Nf3 {[%emt 0:00:20]} e6 {[%emt 0:00:16]} 3. d4 {[%emt 0:00:20]} cxd4 {[%emt 0:00:05]} 4. Nxd4 {[%emt 0:00:06]} a6 {[%emt 0:00:26]} 5. Bd3 {[%emt 0:01:15]} d5 {[%emt 0:00:44]} 6. exd5 Qxd5 {[%emt 0:00:16]} 7. O-O {[%emt 0:01:00]} Nd7 {[%emt 0:03:26]} 8. c3 {[%emt 0:02:41]} Ngf6 {[%emt 0:02:54]} 9. Nd2 {[%emt 0:09:41]} Be7 {[%emt 0:08:52]} 10. Bc2 {[%emt 0:08:53]} O-O {[%emt 0:05:18]} 11. N2f3 {[%emt 0:02:09]} Re8 {[%emt 0:13:16]} 12. Bg5 {[%emt 0:04:04]} Ne5 {[%emt 0:08:23]} 13. Re1 {[%emt 0:04:49]} Nxf3+ {[%emt 0:01:54]} 14. Nxf3 {[%emt 0:00:13]} Rd8 {[%emt 0:11:32]} 15. Qxd5 {[%emt 0:09:47]} Nxd5 {[%emt 0:05:53]} 16. Bxe7 {[%emt 0:00:41]} Nxe7 {[%emt 0:00:07]} 17. Rad1 {[%emt 0:00:20]} Bd7 {[%emt 0:01:27]} 18. Ne5 {[%emt 0:04:28]} 1/2-1/2

[Event "SWE-ch Class 1 2019"]
[Site "Eskilstuna"]
[Date "2019.07.10"]
[Round "3.3"]
[White "Lyngsjo, Hakan"]
[Black "Bjorkman, Filip"]
[Result "1/2-1/2"]
[ECO "B52"]
[WhiteElo "2029"]
[BlackElo "1956"]
[Annotator "NA"]
[PlyCount "92"]
[EventDate "2019.07.06"]
[EventType "tourn"]
[EventCountry "SWE"]
[SourceTitle "playchess.com"]
[Source "ChessBase"]
[SourceQuality "1"]
[TimeControl "40/5400+30:1800+30"]

1. e4 {[%emt 0:00:00]} c5 {[%emt 0:00:00]} 2. Nf3 {[%emt 0:00:23]} d6 {[%emt 0:00:00]} 3. Bb5+ {[%emt 0:00:34]} Bd7 {[%emt 0:00:00]} 4. Bxd7+ {[%emt 0:00:05]} Nxd7 {[%emt 0:00:00]} 5. O-O {[%emt 0:00:48]} Ngf6 {[%emt 0:00:03]} 6. Qe2 {[%emt 0:00:55]} Rc8 {[%emt 0:00:07]} 7. Rd1 {[%emt 0:03:55]} e6 {[%emt 0:06:22]} 8. b3 {[%emt 0:06:21]} Be7 {[%emt 0:10:22]} 9. Bb2 {[%emt 0:03:58]} Qc7 {[%emt 0:00:43]} 10. c4 {[%emt 0:01:09]} e5 {[%emt 0:00:36]} 11. Nc3 {[%emt 0:05:42]} Nf8 {[%emt 0:00:26]} 12. Nd5 {[%emt 0:11:17]} Qd8 {[%emt 0:00:41]} 13. Ne1 {[%emt 0:12:29]} Ne6 {[%emt 0:01:09]} 14. Nd3 {[%emt 0:00:34]} O-O {[%emt 0:04:44]} 15. Rf1 {[%emt 0:05:04]} Nxd5 {[%emt 0:02:50]} 16. exd5 {[%emt 0:03:02]} Nd4 {[%emt 0:00:41]} 17. Bxd4 {[%emt 0:00:59]} exd4 {[%emt 0:00:02]} 18. f4 {[%emt 0:05:39]} Re8 {[%emt 0:07:46]} 19. Nf2 {[%emt 0:05:51]} Bh4 {[%emt 0:03:09]} 20. Qf3 {[%emt 0:01:52]} Bxf2+ {[%emt 0:03:15]} 21. Qxf2 {[%emt 0:00:55]} Rc7 {[%emt 0:00:27]} 22. Rfe1 {[%emt 0:00:55]} Rce7 {[%emt 0:00:14]} 23. Rxe7 {[%emt 0:00:40]} Qxe7 {[%emt 0:00:07]} 24. Kf1 {[%emt 0:00:57]} Qe4 {[%emt 0:00:38]} 25. Re1 {[%emt 0:01:46]} Qd3+ {[%emt 0:02:26]} 26. Kg1 {[%emt 0:02:06]} Re4 {[%emt 0:02:14]} 27. Rxe4 {[%emt 0:07:22]} Qxe4 {[%emt 0:00:12]} 28. Kf1 {[%emt 0:01:30]} Kf8 {[%emt 0:04:34]} 29. Qh4 {[%emt 0:03:13]} Ke8 {[%emt 0:02:13]} 30. Qe1 {[%emt 0:00:30]} Qxe1+ {[%emt 0:13:37]} 31. Kxe1 {[%emt 0:00:37]} Ke7 {[%emt 0:01:02]} 32. Ke2 {[%emt 0:00:30]} f5 {[%emt 0:05:34]} 33. a3 {[%emt 0:02:20]} a6 {[%emt 0:03:39]} 34. b4 {[%emt 0:02:28]} b5 {[%emt 0:06:30]} 35. Kd3 {[%emt 0:01:21]} Kd7 {[%emt 0:00:12]} 36. cxb5 {[%emt 0:01:57]} axb5 {[%emt 0:00:10]} 37. Kc2 {[%emt 0:00:24]} c4 {[%emt 0:03:06]} 38. Kb2 {[%emt 0:00:04]} Ke7 {[%emt 0:01:26]} 39. Kc2 {[%emt 0:00:35]} Kf6 {[%emt 0:02:13]} 40. Kb2 {[%emt 0:00:16]} h6 {[%emt 0:12:21]} 41. g3 {[%emt 0:31:16]} g5 {[%emt 0:15:53]} 42. Kc2 {[%emt 0:00:00]} gxf4 {[%emt 0:05:55]} 43. gxf4 {[%emt 0:00:00]} Kg6 {[%emt 0:01:05]} 44. d3 {[%emt 0:00:00]} Kf7 {[%emt 0:02:43]} 45. dxc4 {[%emt 0:00:00]} bxc4 {[%emt 0:00:07]} 46. a4 {[%emt 0:00:00]} Ke7 {[%emt 0:00:09]} 1/2-1/2

[Event "SWE-ch Class 1 2019"]
[Site "Eskilstuna"]
[Date "2019.07.10"]
[Round "3.4"]
[White "Attefall, Fredrik"]
[Black "Halvarsson, Peter"]
[Result "1/2-1/2"]
[ECO "B38"]
[WhiteElo "2077"]
[BlackElo "1903"]
[Annotator "NA"]
[PlyCount "33"]
[EventDate "2019.07.06"]
[EventType "tourn"]
[EventCountry "SWE"]
[SourceTitle "playchess.com"]
[Source "ChessBase"]
[SourceQuality "1"]
[TimeControl "40/5400+30:1800+30"]

1. e4 {[%emt 0:00:00]} c5 {[%emt 0:00:00]} 2. Nf3 {[%emt 0:00:00]} g6 {[%emt 0:00:00]} 3. d4 {[%emt 0:00:00]} cxd4 {[%emt 0:00:00]} 4. Nxd4 {[%emt 0:00:03]} Bg7 {[%emt 0:00:00]} 5. c4 {[%emt 0:01:00]} Nc6 {[%emt 0:00:02]} 6. Be3 {[%emt 0:02:08]} Nf6 {[%emt 0:00:25]} 7. Nc3 {[%emt 0:06:34]} d6 {[%emt 0:01:24]} 8. Be2 {[%emt 0:01:13]} Bd7 {[%emt 0:03:51]} 9. O-O {[%emt 0:00:50]} O-O {[%emt 0:03:18]} 10. Qd2 {[%emt 0:05:41]} a5 {[%emt 0:12:12]} 11. f3 {[%emt 0:02:30]} a4 {[%emt 0:02:26]} 12. Nd5 {[%emt 0:04:09]} Nxd5 {[%emt 0:20:56]} 13. cxd5 {[%emt 0:00:23]} Nxd4 {[%emt 0:03:21]} 14. Bxd4 {[%emt 0:00:18]} Bxd4+ {[%emt 0:00:41]} 15. Qxd4 {[%emt 0:00:06]} Qa5 {[%emt 0:00:19]} 16. Rac1 {[%emt 0:07:11]} Rac8 {[%emt 0:02:20]} 17. g4 {[%emt 0:11:08]} 1/2-1/2

[Event "SWE-ch Class 1 2019"]
[Site "Eskilstuna"]
[Date "2019.07.10"]
[Round "3.5"]
[White "Jonsson, Krister"]
[Black "Carlsson, Gustav"]
[Result "1-0"]
[ECO "A39"]
[WhiteElo "2068"]
[BlackElo "1982"]
[Annotator "NA"]
[PlyCount "93"]
[EventDate "2019.07.06"]
[EventType "tourn"]
[EventCountry "SWE"]
[SourceTitle "playchess.com"]
[Source "ChessBase"]
[SourceQuality "1"]
[TimeControl "40/5400+30:1800+30"]

1. Nf3 {[%emt 0:00:00]} Nf6 {[%emt 0:00:00]} 2. c4 {[%emt 0:00:00]} c5 {[%emt 0:01:01]} 3. Nc3 {[%emt 0:00:19]} Nc6 {[%emt 0:00:31]} 4. g3 {[%emt 0:02:46]} g6 {[%emt 0:00:24]} 5. Bg2 {[%emt 0:00:12]} Bg7 {[%emt 0:00:08]} 6. O-O {[%emt 0:00:34]} O-O {[%emt 0:00:16]} 7. d4 {[%emt 0:05:14]} cxd4 {[%emt 0:02:17]} 8. Nxd4 {[%emt 0:00:07]} Qb6 {[%emt 0:09:33]} 9. Nb3 {[%emt 0:03:21]} d6 {[%emt 0:04:56]} 10. Be3 {[%emt 0:11:26]} Qb4 {[%emt 0:30:44]} 11. c5 {[%emt 0:17:02]} d5 {[%emt 0:06:44]} 12. Nxd5 {[%emt 0:16:08]} Nxd5 {[%emt 0:00:22]} 13. Qxd5 {[%emt 0:00:11]} Be6 {[%emt 0:05:00]} 14. Qd2 {[%emt 0:06:04]} Bxb3 {[%emt 0:01:47]} 15. axb3 {[%emt 0:05:54]} Qxb3 {[%emt 0:03:59]} 16. Ra3 {[%emt 0:00:48]} Qb5 {[%emt 0:04:50]} 17. Qd3 {[%emt 0:02:25]} Qxd3 {[%emt 0:03:48]} 18. Rxd3 {[%emt 0:00:54]} Ne5 {[%emt 0:03:31]} 19. Rb3 {[%emt 0:01:37]} Nc4 {[%emt 0:01:05]} 20. Bxb7 {[%emt 0:01:08]} Nxe3 {[%emt 0:02:54]} 21. Rxe3 {[%emt 0:02:13]} Bd4 {[%emt 0:03:09]} 22. Bxa8 {[%emt 0:01:40]} Bxe3 {[%emt 0:00:19]} 23. fxe3 {[%emt 0:00:38]} Rxa8 {[%emt 0:00:07]} 24. b4 {[%emt 0:01:16]} Rb8 {[%emt 0:02:23]} 25. Rb1 {[%emt 0:00:29]} a6 {[%emt 0:00:22]} 26. Kf2 {[%emt 0:01:49]} Kf8 {[%emt 0:01:08]} 27. Ke1 {[%emt 0:00:32]} Ke8 {[%emt 0:01:02]} 28. Kd2 {[%emt 0:00:08]} Kd7 {[%emt 0:00:42]} 29. Kc3 {[%emt 0:00:07]} Kc6 {[%emt 0:00:44]} 30. Ra1 {[%emt 0:02:16]} Ra8 {[%emt 0:00:29]} 31. Kc4 {[%emt 0:00:08]} h6 {[%emt 0:00:37]} 32. e4 {[%emt 0:00:54]} Ra7 {[%emt 0:00:57]} 33. e5 {[%emt 0:02:13]} Ra8 {[%emt 0:01:20]} 34. e4 {[%emt 0:00:25]} h5 {[%emt 0:01:26]} 35. h3 {[%emt 0:00:22]} Ra7 {[%emt 0:01:53]} 36. Rf1 {[%emt 0:01:00]} Rb7 {[%emt 0:00:22]} 37. Rxf7 {[%emt 0:09:01]} a5 {[%emt 0:00:18]} 38. bxa5 {[%emt 0:00:11]} Rb1 {[%emt 0:02:42]} 39. Rxe7 {[%emt 0:00:28]} Rc1+ {[%emt 0:00:13]} 40. Kd4 {[%emt 0:00:37]} Rd1+ {[%emt 0:00:33]} 41. Ke3 {[%emt 0:30:31]} Kxc5 {[%emt 0:31:11]} 42. a6 {[%emt 0:03:28]} Ra1 {[%emt 0:00:29]} 43. a7 {[%emt 0:00:39]} g5 {[%emt 0:00:16]} 44. Rc7+ {[%emt 0:00:54]} Kb6 {[%emt 0:00:15]} 45. Rd7 {[%emt 0:00:19]} Kc6 {[%emt 0:01:45]} 46. e6 {[%emt 0:00:22]} Ra3+ {[%emt 0:00:12]} 47. Kd4 {[%emt 0:00:21]} 1-0

[Event "SWE-ch Class 1 2019"]
[Site "Eskilstuna"]
[Date "2019.07.10"]
[Round "3.6"]
[White "Magnussen, Pal"]
[Black "Arvidsson, Jonas"]
[Result "1/2-1/2"]
[ECO "C54"]
[WhiteElo "1985"]
[BlackElo "1965"]
[Annotator "NA"]
[PlyCount "55"]
[EventDate "2019.07.06"]
[EventType "tourn"]
[EventCountry "SWE"]
[SourceTitle "playchess.com"]
[Source "ChessBase"]
[SourceQuality "1"]
[TimeControl "40/5400+30:1800+30"]

1. e4 {[%emt 0:00:00]} e5 {[%emt 0:00:00]} 2. Bc4 {[%emt 0:00:22]} Nc6 {[%emt 0:04:50]} 3. Nf3 {[%emt 0:01:08]} Bc5 {[%emt 0:00:19]} 4. c3 {[%emt 0:01:55]} Nf6 {[%emt 0:00:31]} 5. d3 {[%emt 0:00:16]} d6 {[%emt 0:01:37]} 6. O-O {[%emt 0:01:14]} a6 {[%emt 0:01:04]} 7. b4 {[%emt 0:01:34]} Ba7 {[%emt 0:01:39]} 8. Nbd2 {[%emt 0:01:32]} O-O {[%emt 0:03:25]} 9. Re1 {[%emt 0:02:13]} Qe7 {[%emt 0:06:52]} 10. Nf1 {[%emt 0:08:12]} Ng4 {[%emt 0:02:30]} 11. Re2 {[%emt 0:01:25]} Be6 {[%emt 0:02:02]} 12. Ng3 {[%emt 0:08:56]} h6 {[%emt 0:07:14]} 13. h3 {[%emt 0:06:53]} Nf6 {[%emt 0:01:46]} 14. Bb3 {[%emt 0:02:16]} Qd7 {[%emt 0:02:46]} 15. Bc2 {[%emt 0:06:05]} d5 {[%emt 0:12:48]} 16. exd5 {[%emt 0:06:24]} Nxd5 {[%emt 0:01:06]} 17. Qe1 {[%emt 0:01:47]} Nf4 {[%emt 0:08:51]} 18. Rxe5 {[%emt 0:14:03]} Nxg2 {[%emt 0:06:14]} 19. Qe4 {[%emt 0:02:51]} f5 {[%emt 0:04:22]} 20. Qe2 {[%emt 0:01:38]} Nxe5 {[%emt 0:01:32]} 21. Nxe5 {[%emt 0:00:36]} Qd5 {[%emt 0:01:45]} 22. Bb3 {[%emt 0:01:42]} Qd6 {[%emt 0:03:16]} 23. Bxe6+ {[%emt 0:00:56]} Qxe6 {[%emt 0:00:12]} 24. Kxg2 {[%emt 0:00:13]} f4 {[%emt 0:00:43]} 25. Nf3 {[%emt 0:00:34]} Qg6 {[%emt 0:00:43]} 26. Ne5 {[%emt 0:05:09]} Qe6 {[%emt 0:05:12]} 27. Nf3 {[%emt 0:00:23]} Qg6 {[%emt 0:01:57]} 28. Ne5 {[%emt 0:00:46]} 1/2-1/2